lending/lending_fUSD_20241228
["ID","MTS","AMOUNT","RATE_DAILY","PERIOD"]
[346919307,1735378246565,-629.07136372,0.00012897,2]
[346919308,1735378246575,-500.0,0.00012897,2]
[346919309,1735378246584,-500.0,0.00012898,2]
[346919310,1735378246594,-1265.26,0.00012898,2]
[346919311,1735378246603,-1623.86,0.00012898,2]
[346919312,1735378246612,-1452.55,0.00012898,2]
[346919313,1735378246623,-500.0,0.00012898,2]
[346919314,1735378246633,-1966.18,0.00012898,2]
[346919315,1735378246642,-4525.85,0.00012898,2]
[346919316,1735378246651,-2194.83,0.00012898,2]
[346919317,1735378246661,-8672.65,0.00012898,2]
[346919318,1735378246670,-500.0,0.00012898,2]
[346919319,1735378246679,-2518.92,0.00012898,2]
[346919320,1735378246689,-4152.16,0.00012898,2]
[346919321,1735378246698,-1235.07,0.00012898,2]
[346919322,1735378246707,-2511.5,0.00012898,2]
[346919323,1735378246717,-556.11,0.00012898,2]
[346919324,1735378246727,-2416.01,0.00012898,2]
[346919325,1735378246736,-6037.91,0.00012898,2]
[346919326,1735378246745,-1473.95,0.00012898,2]
[346919327,1735378246755,-500.0,0.00012898,2]
[346919328,1735378246764,-954.79,0.00012898,2]
[346919329,1735378246773,-1114.11,0.00012898,2]
[346919330,1735378246783,-2103.18,0.00012898,2]
[346919331,1735378246792,-2091.48,0.00012898,2]
[346919332,1735378246801,-1224.29,0.00012898,2]
[346919333,1735378246811,-1379.89,0.00012898,2]
[346919334,1735378246820,-2610.18,0.00012898,2]
[346919335,1735378246830,-4174.17,0.00012898,2]
[346919336,1735378246839,-1846.23,0.00012898,2]
[346919337,1735378246848,-3192.93,0.00012898,2]
[346919338,1735378246860,-3916.44,0.00012898,2]
[346919339,1735378246870,-1645.81,0.00012898,2]
[346919340,1735378246882,-13435.91,0.00012898,2]
[346919341,1735378246891,-24042.44,0.00012898,2]
[346919342,1735378246903,-1163.51,0.00012898,2]
[346919343,1735378246912,-500.0,0.00012899,2]
[346919344,1735378246921,-500.0,0.00012899,2]
[346919345,1735378246931,-500.0,0.00012899,2]
[346919346,1735378246941,-614.94,0.00012899,2]
[346919347,1735378246950,-717.97,0.00012899,2]
[346919348,1735378246959,-500.0,0.00012899,2]
[346919349,1735378246969,-500.0,0.00012899,2]
[346919350,1735378246978,-500.0,0.00012899,2]
[346919351,1735378246987,-500.0,0.00012899,2]
[346919352,1735378246997,-3000.0,0.00012899,2]
[346919353,1735378247008,-781.25750937,0.000129,2]
[346919354,1735378247017,-45478.40808412,0.000129,2]
[346919355,1735378247027,-150.03666279,0.000129,2]
[346919356,1735378247037,-428.62635411,0.000129,2]
[346919357,1735378247046,-189.53384069,0.000129,2]
[346919358,1735378247055,-1005.0,0.000129,2]
[346919359,1735378247064,-980.98,0.00012934,2]
[346919360,1735378247073,-500.0,0.00012953,2]
[346919361,1735378247083,-906.27,0.00012953,2]
[346919362,1735378247092,-2679.16,0.00012953,2]
[346919363,1735378247101,-500.0,0.00012953,2]
[346919364,1735378247110,-632.79,0.00012953,2]
[346919365,1735378247120,-1550.41,0.00012953,2]
[346919366,1735378247131,-500.0,0.00012953,2]
[346919367,1735378247141,-500.0,0.00012953,2]
[346919368,1735378247151,-648.47346649,0.00012953,2]
[346919369,1735378247161,-500.0,0.00012953,2]
[346919370,1735378247171,-504.60863373,0.00012953,2]
[346919371,1735378247180,-500.0,0.00012953,2]
[346919372,1735378247190,-500.0,0.00012953,2]
[346919373,1735378247200,-504.05833638,0.00012953,2]
[346919374,1735378247209,-504.02668765,0.00012953,2]
[346919375,1735378247218,-500.0,0.00012953,2]
[346919376,1735378247228,-500.0,0.00012953,2]
[346919377,1735378247238,-500.0,0.00012953,2]
[346919378,1735378247247,-772.66,0.00012953,2]
[346919379,1735378247257,-500.0,0.00012953,2]
[346919380,1735378247266,-503.53707162,0.00012953,2]
[346919381,1735378247276,-510.07490224,0.00012953,2]
[346919382,1735378247286,-500.0,0.00012953,2]
[346919383,1735378247296,-500.0,0.00012953,2]
[346919384,1735378247305,-150.0,0.00012986,2]
[346919385,1735378247314,-150.0,0.00012986,2]
[346919386,1735378247324,-2603.79458398,0.00012988,2]
[346919387,1735378247333,-371.72,0.00012999,2]
[346919388,1735378247343,-1057.45362903,0.00012999,3]
[346919389,1735378247352,-773.1,0.00012999,2]
[346919390,1735378247362,-2286.07,0.00012999,2]
[346919391,1735378247374,-2135.02,0.00012999,2]
[346919392,1735378247383,-1488.27,0.00012999,2]
[346919393,1735378247393,-525.88,0.00012999,2]
[346919394,1735378247403,-3871.78,0.00012999,2]
[346919395,1735378247412,-811.43,0.00012999,2]
[346919396,1735378247422,-1829.12,0.00012999,2]
[346919397,1735378247431,-1876.21,0.00012999,2]
[346919398,1735378247441,-1212.98,0.00012999,2]
[346919399,1735378247451,-3216.83,0.00012999,2]
[346919400,1735378247460,-2447.19,0.00012999,2]
[346919401,1735378247470,-965043.19551773,0.00013,2]
[346919402,1735378247480,-768062.74881314,0.00013,2]
[346919403,1735378247489,-2289997.82063187,0.00013,2]
[346919464,1735378248774,-500.0,0.00012679,2]
[346919465,1735378248785,-268.89942114,0.00012799,2]
[346919466,1735378248864,-231.10057886,0.00012799,2]
[346919467,1735378248875,-1816.73,0.00012799,2]
[346919468,1735378248887,-1171.0,0.00012839,2]
[346919469,1735378248899,-500.0,0.00012953,2]
[346919470,1735378248908,-500.0,0.00012953,2]
[346919471,1735378248918,-1037355.38445689,0.00013,2]
[346919472,1735378249830,-397.09,0.00010088,2]
[346919473,1735378249839,-151.42,0.00011819,2]
[346919474,1735378249848,-397.09,0.00012351,2]
[346919475,1735378249861,-211.16820125,0.0001258,2]
[346919476,1735378249873,-243.23178975,0.0001258,2]
[346919477,1735378249885,-83802.64476099,0.00013,2]
[346919478,1735378249897,-2174.3,0.00013,2]
[346919479,1735378249908,-636.24,0.00013,2]
[346919480,1735378249919,-874.63,0.00013,2]
[346919495,1735378503602,176.0,0.00013,30]
[346919516,1735379431816,-381.72,9.736e-05,2]
[346919517,1735379431826,-301.85,0.00010137,2]
[346919518,1735379431836,-200.0,0.00011567,2]
[346919519,1735379431846,-349.50901728,0.00011628,2]
[346919520,1735379431857,-238.46098272,0.00011628,2]
[346919521,1735379431867,-400.0,0.00011673,2]
[346919522,1735379431876,-151.15871,0.000117,2]
[346919523,1735379431886,-278.34,0.00011716,2]
[346919524,1735379431895,-250.0,0.0001181,2]
[346919525,1735379431905,-1000.0,0.0001182,2]
[346919526,1735379431916,-223.67,0.0001187,2]
[346919527,1735379431926,-250.0,0.00011885,2]
[346919528,1735379431936,-162.0,0.00011913,2]
[346919529,1735379431946,-500.0,0.00011972,2]
[346919530,1735379431956,-1100.0,0.00011972,2]
[346919531,1735379431965,-381.72,0.00012,2]
[346919532,1735379431975,-446.5,0.0001235,2]
[346919533,1735379431985,-379.99,0.0001235,2]
[346919534,1735379431994,-151.15,0.00012472,2]
[346919535,1735379432004,-625.00600757,0.00012579,2]
[346919536,1735379432013,-625.00600749,0.00012615,2]
[346919537,1735379432023,-625.00600749,0.0001265,2]
[346919538,1735379432032,-500.0,0.00012678,2]
[346919539,1735379432041,-830.75,0.00012678,2]
[346919540,1735379432051,-2455.89,0.00012678,2]
[346919541,1735379432060,-507.55,0.00012678,2]
[346919542,1735379432070,-1421.21,0.00012678,2]
[346919543,1735379432079,-500.0,0.00012678,2]
[346919544,1735379432088,-1301.95,0.00012678,2]
[346919545,1735379432098,-500.0,0.00012678,2]
[346919546,1735379432107,-500.0,0.00012678,2]
[346919547,1735379432116,-500.0,0.00012678,2]
[346919548,1735379432125,-708.27,0.00012678,2]
[346919549,1735379432134,-500.0,0.00012678,2]
[346919550,1735379432143,-1087.36,0.00012678,2]
[346919551,1735379432152,-374.42,0.00012678,2]
[346919552,1735379432161,-376.71,0.00012679,2]
[346919553,1735379432171,-509.21855497,0.00012679,2]
[346919554,1735379432180,-505.21765763,0.00012679,2]
[346919555,1735379432190,-500.0,0.00012679,2]
[346919556,1735379432199,-500.0,0.00012679,2]
[346919557,1735379432209,-500.0,0.00012679,2]
[346919559,1735379432218,-500.0,0.00012679,2]
[346919561,1735379432227,-500.0,0.00012679,2]
[346919562,1735379432236,-505.1570586,0.00012679,2]
[346919563,1735379432246,-500.0,0.00012679,2]
[346919564,1735379432255,-500.0,0.00012679,2]
[346919565,1735379432264,-495.7754314,0.00012679,2]
[346919567,1735379432273,-500.0,0.00012679,2]
[346919569,1735379432282,-506.16404309,0.00012679,2]
[346919571,1735379432291,-500.0,0.00012679,2]
[346919573,1735379432300,-505.98735949,0.00012679,2]
[346919575,1735379432309,-509.22308287,0.00012679,2]
[346919577,1735379432318,-500.0,0.00012679,2]
[346919579,1735379432327,-570.68702767,0.00012679,2]
[346919581,1735379432336,-505.67935902,0.00012679,2]
[346919583,1735379432346,-467.33059101,0.00012679,2]
[346919587,1735379432461,-32.66940899,0.00012679,2]
[346919588,1735379432471,-500.0,0.00012679,2]
[346919589,1735379432482,-500.0,0.00012679,2]
[346919590,1735379432491,-500.0,0.00012679,2]
[346919591,1735379432500,-11.70225101,0.00012679,2]
[346919592,1735379432523,-404.59679855,0.00012679,2]
[346919593,1735379432535,-83.70095044,0.00012679,2]
[346919594,1735379432544,-516.3792105,0.00012679,2]
[346919595,1735379432553,-507.20205262,0.00012679,2]
[346919596,1735379432563,-315.99862219,0.00012679,2]
[346919610,1735379437812,-896.25,0.00012678,2]
[346919612,1735379437822,-184.00137781,0.00012679,2]
[346919614,1735379437831,-500.0,0.00012679,2]
[346919616,1735379437840,-123.47853012,0.00012679,2]
[346919618,1735379437852,-379.785292,0.00012679,2]
[346919619,1735379437862,-500.0,0.00012679,2]
[346919620,1735379437871,-500.0,0.00012679,2]
[346919621,1735379437880,-500.0,0.00012679,2]
[346919622,1735379437889,-290.37829981,0.00012679,2]
[346919623,1735379437924,-209.62170019,0.00012679,2]
[346919624,1735379437934,-162.60620614,0.00012679,2]
[346919625,1735379437945,-337.39379386,0.00012679,2]
[346919626,1735379437954,-500.0,0.00012679,2]
[346919627,1735379438153,-500.0,0.00012679,2]
[346919628,1735379438164,-500.0,0.00012679,2]
[346919629,1735379438174,-466.13730311,0.00012679,2]
[346919630,1735379438186,-33.86269689,0.00012679,2]
[346919631,1735379438195,-500.0,0.00012679,2]
[346919632,1735379438204,-500.0,0.00012679,2]
[346919633,1735379438214,-500.0,0.00012679,2]
[346919634,1735379438224,-539.63621223,0.00012679,2]
[346919635,1735379438234,-500.0,0.00012679,2]
[346919636,1735379438243,-553.8,0.00012679,2]
[346919637,1735379438252,-16.23577547,0.00012679,2]
[346919642,1735379438281,-384.359608,0.00012679,2]
[346919646,1735379438296,-99.40461653,0.00012679,2]
[346919649,1735379438306,-159.61799936,0.00012679,2]
[346919652,1735379438315,-67.49738261,0.00012679,2]
[346919656,1735379438326,-432.50261739,0.00012679,2]
[346919658,1735379438335,-218.74734161,0.00012679,2]
[346919696,1735379439958,-281.25265839,0.00012679,2]
[346919697,1735379439968,-6.16057895,0.00012679,2]
[346919698,1735379440016,-420.0,0.00012679,2]
[346919699,1735379440075,-73.83942105,0.00012679,2]
[346919700,1735379440084,-262.43807896,0.00012679,2]
[346919701,1735379440133,-237.56192104,0.00012679,2]
[346919702,1735379440142,-500.0,0.00012679,2]
[346919703,1735379440152,-500.0,0.00012679,2]
[346919704,1735379440161,-500.0,0.00012679,2]
[346919705,1735379440171,-500.0,0.00012679,2]
[346919706,1735379440180,-500.0,0.00012679,2]
[346919707,1735379440189,-500.0,0.00012679,2]
[346919708,1735379440200,-500.0,0.00012679,2]
[346919709,1735379440210,-529.44283115,0.00012679,2]
[346919710,1735379440219,-500.0,0.00012679,2]
[346919711,1735379440227,-500.0,0.00012679,2]
[346919712,1735379440237,-500.0,0.00012679,2]
[346919713,1735379440246,-502.97632268,0.00012679,2]
[346919714,1735379440255,-500.0,0.00012679,2]
[346919715,1735379440264,-500.0,0.00012679,2]
[346919716,1735379440272,-503.34459153,0.00012679,2]
[346919717,1735379440281,-500.0,0.00012679,2]
[346919718,1735379440290,-500.0,0.00012679,2]
[346919719,1735379440299,-500.0,0.00012679,2]
[346919720,1735379440308,-500.0,0.00012679,2]
[346919721,1735379440317,-500.0,0.00012679,2]
[346919722,1735379440326,-500.0,0.00012679,2]
[346919723,1735379440335,-500.0,0.00012679,2]
[346919724,1735379440344,-500.0,0.00012679,2]
[346919725,1735379440352,-500.0,0.00012679,2]
[346919726,1735379440361,-500.0,0.00012679,2]
[346919727,1735379440370,-500.0,0.00012679,2]
[346919728,1735379440380,-500.0,0.00012679,2]
[346919729,1735379440389,-500.0,0.00012679,2]
[346919730,1735379440398,-500.0,0.00012679,2]
[346919731,1735379440407,-500.0,0.00012679,2]
[346919732,1735379440417,-500.0,0.00012679,2]
[346919733,1735379440426,-500.0,0.00012679,2]
[346919734,1735379440435,-500.0,0.00012679,2]
[346919735,1735379440444,-500.0,0.00012679,2]
[346919736,1735379440457,-500.0,0.00012679,2]
[346919737,1735379440466,-500.0,0.00012679,2]
[346919738,1735379440475,-500.0,0.00012679,2]
[346919739,1735379440484,-500.0,0.00012679,2]
[346919740,1735379440495,-570.27699593,0.00012679,2]
[346919741,1735379440504,-251.63939929,0.00012679,2]
[346919742,1735379440513,-500.0,0.00012679,2]
[346919743,1735379440522,-500.0,0.00012679,2]
[346919744,1735379440531,-500.0,0.00012679,2]
[346919745,1735379440540,-500.0,0.00012679,2]
[346919746,1735379440549,-500.0,0.00012679,2]
[346919747,1735379440558,-502.65433687,0.00012679,2]
[346919748,1735379440568,-500.0,0.00012679,2]
[346919749,1735379440577,-500.0,0.00012679,2]
[346919750,1735379440587,-500.0,0.00012679,2]
[346919751,1735379440596,-500.0,0.00012679,2]
[346919752,1735379440605,-500.0,0.00012679,2]
[346919753,1735379440615,-500.0,0.00012679,2]
[346919754,1735379440624,-500.0,0.00012679,2]
[346919755,1735379440633,-500.0,0.00012679,2]
[346919756,1735379440643,-500.0,0.00012679,2]
[346919757,1735379440652,-500.0,0.00012679,2]
[346919758,1735379440661,-500.0,0.00012679,2]
[346919759,1735379440671,-500.0,0.00012679,2]
[346919760,1735379440681,-500.0,0.00012679,2]
[346919761,1735379440690,-500.0,0.00012679,2]
[346919762,1735379440700,-500.0,0.00012679,2]
[346919763,1735379440709,-500.0,0.00012679,2]
[346919764,1735379440718,-528.35,0.00012679,2]
[346919765,1735379440727,-814.51,0.00012679,2]
[346919766,1735379440736,-708.79,0.00012679,2]
[346919767,1735379440745,-500.0,0.00012679,2]
[346919768,1735379440754,-620.93,0.00012679,2]
[346919769,1735379440763,-500.0,0.00012679,2]
[346919770,1735379440772,-500.0,0.00012679,2]
[346919771,1735379440781,-500.0,0.00012679,2]
[346919772,1735379440791,-631.4,0.00012679,2]
[346919773,1735379440800,-500.0,0.00012679,2]
[346919774,1735379440808,-500.0,0.00012679,2]
[346919775,1735379440818,-500.0,0.00012679,2]
[346919776,1735379440827,-500.0,0.00012679,2]
[346919777,1735379440836,-500.0,0.00012679,2]
[346919778,1735379440845,-506.99403217,0.00012679,2]
[346919779,1735379440855,-500.0,0.00012679,2]
[346919780,1735379440864,-500.0,0.00012679,2]
[346919781,1735379440873,-1513.02,0.00012679,2]
[346919782,1735379440882,-500.0,0.00012679,2]
[346919783,1735379440891,-500.0,0.00012679,2]
[346919784,1735379440900,-500.0,0.00012679,2]
[346919785,1735379440909,-500.0,0.00012679,2]
[346919786,1735379440919,-500.0,0.00012679,2]
[346919787,1735379440928,-500.0,0.00012679,2]
[346919788,1735379440937,-500.0,0.00012679,2]
[346919789,1735379440946,-500.0,0.00012679,2]
[346919790,1735379440955,-500.0,0.00012679,2]
[346919791,1735379440964,-500.0,0.00012679,2]
[346919792,1735379440974,-500.0,0.00012679,2]
[346919793,1735379440983,-500.0,0.00012679,2]
[346919794,1735379440992,-500.0,0.00012679,2]
[346919795,1735379441001,-500.0,0.00012679,2]
[346919796,1735379441011,-1741.03,0.00012679,2]
[346919797,1735379441019,-311.63514439,0.00012679,2]
[346919798,1735379441028,-500.0,0.00012679,2]
[346919799,1735379441038,-500.0,0.00012679,2]
[346919800,1735379441047,-500.0,0.00012679,2]
[346919801,1735379441056,-500.0,0.00012679,2]
[346919802,1735379441065,-500.0,0.00012679,2]
[346919803,1735379441075,-500.0,0.00012679,2]
[346919804,1735379441085,-526.94,0.00012679,2]
[346919805,1735379441095,-500.0,0.00012679,2]
[346919806,1735379441104,-500.0,0.00012679,2]
[346919807,1735379441113,-786.74,0.00012679,2]
[346919808,1735379441123,-500.0,0.00012679,2]
[346919809,1735379441132,-513.58791824,0.00012679,2]
[346919810,1735379441141,-500.0,0.00012679,2]
[346919811,1735379441151,-500.0,0.00012679,2]
[346919812,1735379441160,-1414.26,0.00012679,2]
[346919813,1735379441170,-505.99353113,0.00012679,2]
[346919814,1735379441179,-500.0,0.00012679,2]
[346919815,1735379441190,-952.76,0.00012679,2]
[346919816,1735379441199,-952.76,0.00012679,2]
[346919817,1735379441208,-500.0,0.00012679,2]
[346919818,1735379441217,-500.0,0.00012679,2]
[346919819,1735379441226,-540.8,0.00012679,2]
[346919820,1735379441235,-506.77865695,0.00012679,2]
[346919821,1735379441245,-394.86807599,0.00012679,2]
[346919822,1735379441254,-810.6,0.00012679,2]
[346919823,1735379441263,-500.0,0.00012679,2]
[346919824,1735379441272,-500.0,0.00012679,2]
[346919825,1735379441282,-503.70456212,0.00012679,2]
[346919826,1735379441291,-500.0,0.00012679,2]
[346919827,1735379441300,-500.0,0.00012679,2]
[346919828,1735379441309,-500.0,0.00012679,2]
[346919829,1735379441318,-505.55763703,0.00012679,2]
[346919830,1735379441327,-500.0,0.00012679,2]
[346919831,1735379441336,-500.0,0.00012679,2]
[346919832,1735379441345,-500.0,0.00012679,2]
[346919833,1735379441355,-500.0,0.00012679,2]
[346919834,1735379441364,-500.0,0.00012679,2]
[346919835,1735379441373,-500.0,0.00012679,2]
[346919836,1735379441382,-500.0,0.00012679,2]
[346919837,1735379441391,-509.16444022,0.00012679,2]
[346919838,1735379441400,-500.0,0.00012679,2]
[346919839,1735379441410,-500.0,0.00012679,2]
[346919840,1735379441421,-500.0,0.00012679,2]
[346919841,1735379441430,-500.0,0.00012679,2]
[346919842,1735379441440,-500.0,0.00012679,2]
[346919843,1735379441452,-500.0,0.00012679,2]
[346919844,1735379441461,-500.0,0.00012679,2]
[346919845,1735379441471,-500.0,0.00012679,2]
[346919846,1735379441480,-2991.47,0.00012679,2]
[346919847,1735379441490,-500.0,0.00012679,2]
[346919848,1735379441499,-500.0,0.00012679,2]
[346919849,1735379441508,-500.0,0.00012679,2]
[346919850,1735379441518,-500.0,0.00012679,2]
[346919851,1735379441527,-500.0,0.00012679,2]
[346919852,1735379441536,-500.0,0.00012679,2]
[346919853,1735379441546,-500.0,0.00012679,2]
[346919854,1735379441555,-500.0,0.00012679,2]
[346919855,1735379441564,-500.0,0.00012679,2]
[346919856,1735379441573,-500.0,0.00012679,2]
[346919857,1735379441583,-500.0,0.00012679,2]
[346919858,1735379441592,-500.0,0.00012679,2]
[346919859,1735379441601,-1487.82,0.00012679,2]
[346919860,1735379441610,-500.0,0.00012679,2]
[346919861,1735379441619,-500.0,0.00012679,2]
[346919862,1735379441628,-1603.87,0.00012679,2]
[346919863,1735379441637,-1603.87,0.00012679,2]
[346919864,1735379441646,-500.0,0.00012679,2]
[346919865,1735379441656,-700.28,0.00012679,2]
[346919866,1735379441665,-500.0,0.00012679,2]
[346919867,1735379441675,-500.0,0.00012679,2]
[346919868,1735379441684,-500.0,0.00012679,2]
[346919869,1735379441693,-500.0,0.00012679,2]
[346919870,1735379441702,-5380.15655979,0.00012679,2]
[346919878,1735379442833,-2820.35705313,0.0001192,2]
[346919879,1735379442844,-671.43999862,0.0001192,2]
[346919912,1735379445906,-16107.23439535,0.0001192,2]
[346919914,1735380183744,400.91,9.829e-05,2]
[346919916,1735380303844,-169.5,0.00010137,2]
[346919917,1735380306781,150.0,0.00011688,2]
[346919918,1735380307004,539.59,0.0001169,2]
[346919943,1735380632001,-300.0,0.00011423,2]
[346919945,1735380632011,-150.0,0.00011456,2]
[346919947,1735380632022,-3771.41,0.00011687,2]
[346919948,1735380632031,-150.0,0.00011688,2]
[346919950,1735380632041,-150.0,0.00011688,2]
[346919951,1735380632051,-150.0,0.00011688,2]
[346919952,1735380632063,-3751.37,0.0001169,2]
[346919953,1735380632073,-251.57,0.00011714,2]
[346919954,1735380632082,-2979.3589,0.00011742,2]
[346919955,1735380632092,-150.0,0.00011769,2]
[346919956,1735380632101,-251.2,0.00011788,2]
[346919957,1735380632118,-250.0,0.00011842,2]
[346919958,1735380632131,-1000.0,0.00011843,2]
[346919959,1735380632143,-150.0,0.0001185,2]
[346919960,1735380632153,-150.0,0.00011904,2]
[346919961,1735380632162,-150.0,0.00011931,2]
[346919962,1735380632172,-150.0,0.00011947,2]
[346919963,1735380632182,-500.0,0.00011972,2]
[346919964,1735380632193,-1200.0,0.00011972,2]
[346919965,1735380632204,-150.0,0.00012012,2]
[346919966,1735380632215,-330.0911,0.00012093,2]
[346919967,1735380632228,-70.8189,0.00012093,2]
[346919968,1735380632237,-150.0,0.00012093,2]
[346919969,1735380632247,-150.0,0.00012121,2]
[346919970,1735380632257,-150.0,0.00012175,2]
[346919971,1735380632266,-150.0,0.00012207,2]
[346919972,1735380632276,-206.13,0.00012236,2]
[346919973,1735380632286,-150.0,0.00012256,2]
[346919974,1735380632296,-5263.0511001,0.00012291,2]
[346919975,1735380632309,-3305.9488999,0.00012291,2]
[346919976,1735380632319,-150.0,0.00012337,2]
[346919977,1735380632329,-150.0,0.00012337,2]
[346919978,1735380632338,-444.408,0.0001235,2]
[346919979,1735380632348,-150.0,0.00012418,2]
[346919980,1735380632358,-150.0,0.00012467,2]
[346919981,1735380632368,-150.0,0.00012499,2]
[346919982,1735380632379,-150.0,0.00012553,2]
[346919983,1735380632389,-150.0,0.0001258,2]
[346919984,1735380632399,-1079.6431001,0.00012596,2]
[346919985,1735380632412,-1360.0,0.00012596,2]
[346919987,1735380632424,-3272.5701999,0.00012596,2]
[346919989,1735380632434,-150.0,0.00012662,2]
[346919991,1735380632444,-1000.0,0.00012677,2]
[346919993,1735380632454,-211.063,0.00012678,2]
[346919994,1735380632464,-1544.894,0.00012678,2]
[346919995,1735380632473,-2000.0,0.00012679,2]
[346919996,1735380632483,-200.0,0.00012679,2]
[346919997,1735380632492,-1067.69,0.00012679,2]
[346919998,1735380632502,-2015.55,0.00012679,2]
[346919999,1735380632511,-2004.33,0.00012679,2]
[346920000,1735380632522,-1173.28,0.00012679,2]
[346920002,1735380632532,-1322.39,0.00012679,2]
[346920004,1735380632541,-2501.43,0.00012679,2]
[346920006,1735380632551,-4000.25,0.00012679,2]
[346920008,1735380632561,-3753.25,0.00012679,2]
[346920010,1735380632571,-23040.67,0.00012679,2]
[346920012,1735380632581,-1769.3,0.00012679,2]
[346920014,1735380632590,-1577.23,0.00012679,2]
[346920016,1735380632599,-1115.03,0.00012679,2]
[346920019,1735380632609,-3059.9,0.00012679,2]
[346920021,1735380632618,-12876.08,0.00012679,2]
[346920023,1735380632628,-740.89,0.00012679,2]
[346920025,1735380632637,-3000.0,0.00012679,2]
[346920027,1735380632646,-2190.82,0.00012679,2]
[346920029,1735380632655,-1243.5549,0.00012695,2]
[346920031,1735380632664,-500.0,0.00012695,2]
[346920033,1735380632673,-500.0,0.00012695,2]
[346920034,1735380632683,-437.50420527,0.00012695,2]
[346920036,1735380632693,-1123.09,0.00012695,2]
[346920039,1735380632704,-500.0,0.00012695,2]
[346920041,1735380632713,-500.0,0.00012695,2]
[346920043,1735380632722,-500.0,0.00012695,2]
[346920044,1735380632732,-742.23,0.00012695,2]
[346920047,1735380632742,-500.0,0.00012695,2]
[346920048,1735380632752,-1228.45,0.00012695,2]
[346920050,1735380632761,-500.0,0.00012695,2]
[346920053,1735380632771,-1822.73,0.00012695,2]
[346920055,1735380632780,-1400.78,0.00012695,2]
[346920057,1735380632790,-635.74,0.00012695,2]
[346920059,1735380632799,-500.0,0.00012695,2]
[346920060,1735380632809,-967.97,0.00012695,2]
[346920063,1735380632819,-500.0,0.00012695,2]
[346920065,1735380632829,-762.27,0.00012695,2]
[346920066,1735380632838,-510.91,0.00012695,2]
[346920069,1735380632847,-150.03666278,0.00012695,2]
[346920071,1735380632857,-500.0,0.00012695,2]
[346920073,1735380632867,-608.8,0.00012695,2]
[346920074,1735380632876,-210.12461969,0.00012695,2]
[346920076,1735380632885,-1120.65,0.00012695,2]
[346920078,1735380632894,-192.91348954,0.00012695,2]
[346920079,1735380632904,-1252.21,0.00012695,2]
[346920080,1735380632914,-500.0,0.00012695,2]
[346920081,1735380632924,-437.50420524,0.00012718,2]
[346920082,1735380632933,-150.0,0.00012727,2]
[346920083,1735380632943,-437.50420524,0.00012741,2]
[346920084,1735380632952,-150.0,0.00012743,2]
[346920085,1735380632963,-150.0,0.00012758,2]
[346920086,1735380632977,-3856.69234383,0.00012758,2]
[346920087,1735380632991,-33.30765617,0.00012758,2]
[346920088,1735380633000,-6914.80181827,0.00012758,2]
[346920089,1735380633012,-840.0,0.00012758,2]
[346920090,1735380633085,-380.67764052,0.00012758,2]
[346920091,1735380633097,-1466.52054121,0.00012758,2]
[346920092,1735380633106,-372.702,0.00012758,2]
[346920093,1735380633116,-437.50420524,0.00012763,2]
[346920094,1735380633126,-150.0,0.0001277,2]